bitfinex/quotes_SOLUSD_20251002
["timestamp","ask_amount","ask_price","bid_price","bid_amount"]
[1759377226006,0.67,223.96,223.93,25.98563645]
[1759377226414,0.67,223.95,223.89,0.82]
[1759377226612,31.4,223.94,223.89,0.82]
[1759377226802,32.07,223.94,223.9,0.72]
[1759377228424,32.07,223.94,223.91,4.46608012]
[1759377230532,42.27647521,223.96,223.92,0.72]
[1759377230837,42.94647521,223.96,223.9,5.18627958]
[1759377231302,0.67,223.95,223.9,5.18627958]
[1759377231509,0.67,223.94,223.9,5.18627958]
[1759377232096,0.67,223.94,223.91,0.72]
[1759377232395,0.67,223.94,223.9,5.18627958]
[1759377233233,42.27647521,223.96,223.9,4.46627958]
[1759377233534,0.67,223.93,223.9,4.46627958]
[1759377234033,0.7,223.95,223.9,5.18627958]
[1759377234197,0.7,223.94,223.9,5.18627958]
[1759377234710,0.7,223.94,223.91,5.18600296]
[1759377234919,0.7,223.94,223.89,25.36628993]
[1759377235122,0.7,223.94,223.9,0.72]
[1759377235326,0.7,223.94,223.89,25.36628993]
[1759377235515,0.7,223.94,223.9,0.72]
[1759377235710,42.27647521,223.96,223.91,0.72]
[1759377236024,42.27647521,223.96,223.89,25.36628993]
[1759377236025,42.97647521,223.96,223.92,0.72]
[1759377236198,11.57647521,223.96,223.92,0.72]
[1759377236398,32.08,223.95,223.89,36.53248761]
[1759377236598,32.08,223.95,223.91,0.72]
[1759377236824,31.38,223.95,223.92,0.72]
[1759377237230,31.38,223.95,223.93,5.18560257]
[1759377238204,31.38,223.95,223.9,4.46627958]
[1759377238408,31.38,223.95,223.91,0.72]
[1759377238809,32.08,223.95,223.91,0.72]
[1759377239427,0.7,223.94,223.91,0.72]
[1759377240713,0.7,223.94,223.9,4.46627958]
[1759377241032,0.7,223.93,223.9,4.46627958]
[1759377241250,0.7,223.92,223.89,20.9]
[1759377242310,0.7,223.92,223.91,20.8]
[1759377243953,31.38,223.93,223.91,20.8]
[1759377244251,32.08,223.93,223.91,20.8]
[1759377244447,0.7,223.92,223.91,20.8]
[1759377246228,31.38,223.93,223.91,20.8]
[1759377246734,32.08,223.93,223.91,20.8]
[1759377248526,31.38,223.93,223.9,4.46620729]
[1759377248727,0.7,223.92,223.9,4.46620729]
[1759377248924,31.38,223.93,223.9,14.46620729]
[1759377249151,32.08,223.93,223.9,14.46620729]
[1759377250323,31.38,223.93,223.91,20.8]
[1759377250661,32.08,223.93,223.91,20.8]
[1759377251024,0.7,223.92,223.9,10.0]
[1759377251849,32.08,223.93,223.9,10.0]
[1759377252570,0.7,223.92,223.9,10.0]
[1759377252870,31.38,223.93,223.9,10.0]
[1759377253048,32.08,223.93,223.9,10.0]
[1759377253246,10.87647521,223.91,223.9,10.0]
[1759377253452,13.07775944,223.91,223.9,10.0]
[1759377254165,11.57647521,223.91,223.9,10.0]
[1759377254913,42.95647521,223.91,223.9,10.0]
[1759377255346,11.57647521,223.91,223.9,10.0]
[1759377255867,42.95647521,223.91,223.9,10.0]
[1759377256046,24.99299094,223.91,223.9,10.0]
[1759377256247,56.35299094,223.91,223.9,10.0]
[1759377256639,42.93647521,223.91,223.9,10.0]
[1759377256863,56.35299094,223.91,223.9,10.0]
[1759377257064,42.93647521,223.91,223.9,10.0]
[1759377257447,56.35299094,223.91,223.9,10.0]
[1759377257650,42.93647521,223.91,223.9,10.0]
[1759377258261,47.40255533,223.91,223.9,10.0]
[1759377258461,60.81907106,223.91,223.9,10.0]
[1759377264185,56.35299094,223.91,223.9,10.0]
[1759377265901,13.41651573,223.91,223.9,10.0]
[1759377266100,13.41651573,223.91,223.9,10.7]
[1759377266101,31.36,223.91,223.9,10.7]
[1759377266687,31.36,223.91,223.9,10.0]
[1759377267889,31.36,223.91,223.9,10.7]
[1759377268272,10.87647521,223.93,223.9,10.7]
[1759377268473,31.36,223.92,223.9,10.7]
[1759377268773,31.36,223.92,223.9,10.0]
[1759377269503,31.36,223.92,223.9,10.7]
[1759377269998,31.36,223.92,223.9,10.0]
[1759377270584,31.36,223.92,223.9,10.7]
[1759377271198,31.36,223.92,223.9,10.0]
[1759377272366,32.07,223.92,223.9,10.0]
[1759377274894,32.07,223.91,223.9,10.0]
[1759377276195,31.36,223.91,223.9,10.0]
[1759377277101,35.82608012,223.91,223.9,8.38]
[1759377277300,35.82608012,223.91,223.77,0.37954395]
[1759377277301,10.87647521,223.9,223.77,0.37954395]
[1759377277507,13.22709762,223.83,223.77,0.37954395]
[1759377277704,45.28925919,223.83,223.77,0.37954395]
[1759377277925,11.01863678,223.82,223.77,0.37954395]
[1759377278209,17.83713516,223.82,223.77,0.37954395]
[1759377278375,15.48651275,223.82,223.77,0.37954395]
[1759377278698,22.63057081,223.82,223.77,0.37954395]
[1759377279298,19.62708459,223.82,223.77,0.37954395]
[1759377279479,47.13920862,223.82,223.77,0.37954395]
[1759377279875,70.28983103,223.82,223.77,0.37954395]
[1759377280069,31.67647521,223.78,223.77,0.37954395]
[1759377280270,11.01863678,223.78,223.77,0.37954395]
[1759377280501,43.07863678,223.78,223.77,0.37954395]
[1759377280699,45.42925919,223.78,223.77,0.37954395]
[1759377283798,45.50925919,223.78,223.77,0.37954395]
[1759377284208,11.01863678,223.78,223.77,0.37954395]
[1759377284519,45.34709762,223.78,223.77,0.37954395]
[1759377284700,13.22709762,223.78,223.77,0.37954395]
[1759377284931,45.34709762,223.78,223.77,1.07954395]
[1759377285107,42.99647521,223.78,223.77,1.07954395]
[1759377286681,2.35062241,223.81,223.77,1.07954395]
[1759377286886,32.12,223.8,223.78,0.7]
[1759377288203,42.99647521,223.8,223.79,0.7]
[1759377293593,42.99647521,223.8,223.77,1.06954395]
[1759377293825,13.22709762,223.79,223.77,1.06954395]
[1759377294020,32.1,223.78,223.77,1.06954395]
[1759377294327,32.1,223.78,223.77,0.37954395]
[1759377294898,32.1,223.78,223.77,1.06954395]
[1759377295734,32.08,223.8,223.77,5.53841408]
[1759377296022,32.08,223.81,223.8,4.46827524]
[1759377296328,10.87647521,223.87,223.8,25.95827524]
[1759377296501,10.87647521,223.85,223.81,0.69]
[1759377296705,32.08,223.84,223.81,0.69]
[1759377297324,32.08,223.84,223.82,0.69]
[1759377297524,42.95647521,223.84,223.83,0.69]
[1759377300310,2.35062241,223.9,223.83,5.15762062]
[1759377300520,42.93647521,223.89,223.84,0.69]
[1759377300830,45.28709762,223.89,223.83,20.8]
[1759377301131,2.35062241,223.87,223.83,20.8]
[1759377301331,10.87647521,223.85,223.79,0.69]
[1759377301512,13.22709762,223.82,223.79,0.69]
[1759377301713,32.04,223.81,223.79,0.69]
[1759377301914,32.04,223.81,223.8,0.69]
[1759377305940,32.02,223.82,223.8,0.69]
[1759377306935,34.37062241,223.82,223.8,0.69]
[1759377307524,32.02,223.82,223.8,0.69]
[1759377308137,13.22709762,223.81,223.77,0.37954395]
[1759377308344,13.22709762,223.79,223.77,0.37954395]
[1759377308554,42.85647521,223.78,223.77,0.37954395]
[1759377308855,31.98,223.78,223.77,4.84839216]
[1759377309021,31.98,223.79,223.77,4.84839216]
[1759377309222,31.98,223.79,223.78,0.69]
[1759377309621,31.98,223.79,223.78,5.15867459]
[1759377309948,2.35062241,223.86,223.78,5.15867459]
[1759377310122,42.83647521,223.85,223.79,0.69]
[1759377310442,4.60890575,223.88,223.79,0.69]
[1759377310443,1.0,223.84,223.79,0.69]
[1759377310646,32.0,223.89,223.81,20.8]
[1759377310845,32.0,223.89,223.82,0.69]
[1759377311637,32.0,223.89,223.83,4.46767636]
[1759377311824,10.87647521,223.88,223.84,0.69]
[1759377312223,10.87647521,223.88,223.85,0.69]
[1759377312823,10.87647521,223.88,223.86,0.69]
[1759377313051,32.0,223.89,223.86,0.69]
[1759377313345,32.0,223.89,223.87,0.69]
[1759377313524,42.87647521,223.89,223.88,0.69]
[1759377313847,32.0,223.89,223.88,21.49]
[1759377314021,10.87647521,223.92,223.88,21.49]
[1759377314222,32.0,223.91,223.89,0.69]
[1759377314440,13.22709762,223.94,223.88,20.8]
[1759377314441,32.0,223.9,223.88,20.8]
[1759377315129,32.0,223.9,223.88,21.49]
[1759377315532,31.98,223.9,223.88,21.49]
[1759377315828,31.98,223.9,223.88,0.69]
[1759377316338,31.98,223.9,223.87,25.26669313]
[1759377316530,31.98,223.9,223.88,0.69]
[1759377316849,31.98,223.9,223.89,0.69]
[1759377317043,31.96,223.91,223.89,5.15647907]
[1759377317239,31.96,223.91,223.9,0.69]
[1759377318653,31.96,223.91,223.9,5.15627958]
[1759377319443,31.96,223.91,223.9,0.69]
[1759377320244,31.94,223.91,223.9,0.69]
[1759377320954,31.94,223.91,223.9,5.15627958]
[1759377321661,31.92,223.92,223.9,5.15627958]
[1759377321963,31.92,223.92,223.91,0.7]
[1759377322269,10.87647521,223.97,223.91,0.7]
[1759377322433,10.87647521,223.95,223.91,5.16600017]
[1759377322631,10.87647521,223.95,223.92,0.7]
[1759377323444,31.92,223.96,223.93,0.7]
[1759377323643,10.87647521,223.95,223.93,0.7]
[1759377324233,10.87647521,223.95,223.91,25.26600017]
[1759377324460,10.87647521,223.95,223.92,0.67]
[1759377324633,31.9,223.94,223.92,4.46585505]
[1759377324967,31.9,223.94,223.93,0.67]
[1759377325746,14.91785821,224.01,223.93,0.67]
[1759377325973,42.77647521,224.0,223.93,0.67]
[1759377326288,10.87647521,223.98,223.93,0.67]
[1759377326462,31.9,223.97,223.92,4.46585505]
[1759377326783,31.9,223.97,223.94,4.46540383]
[1759377326985,31.9,223.97,223.92,0.67]
[1759377327280,10.87647521,223.94,223.89,0.67]
[1759377327474,10.87647521,223.94,223.88,79.87]
[1759377327475,31.88,223.93,223.88,79.87]
[1759377327676,31.88,223.93,223.89,0.67]
[1759377327856,31.88,223.93,223.9,0.67]
[1759377328056,31.88,223.93,223.88,104.46667799]
[1759377328257,31.88,223.93,223.91,0.67]
[1759377328455,10.87647521,223.94,223.88,104.46667799]
[1759377328684,31.94,223.93,223.89,0.67]
[1759377328854,12.38081707,223.98,223.89,0.67]
[1759377329185,10.87647521,223.96,223.89,0.67]
[1759377329753,10.87647521,223.96,223.9,4.46627958]
[1759377329948,10.87647521,223.96,223.93,20.8]
[1759377330785,31.9,223.95,223.94,0.67]
[1759377332156,31.9,223.95,223.93,25.26559289]
[1759377332365,31.9,223.95,223.93,25.93559289]
[1759377332655,31.9,223.95,223.93,20.8]
[1759377332854,31.9,223.95,223.94,2.98417689]
[1759377333685,31.9,223.95,223.94,3.65417689]
[1759377334779,31.9,223.95,223.94,8.11965871]
[1759377335160,31.88,223.97,223.94,8.11965871]
[1759377335351,31.88,223.97,223.95,3.65417689]
[1759377335557,42.75647521,223.97,223.96,2.98417689]
[1759377336080,31.88,223.97,223.96,2.98417689]
[1759377336386,31.86,223.98,223.96,3.65417689]
[1759377336558,31.86,223.98,223.95,4.46524604]
[1759377336559,42.73647521,223.98,223.97,2.98417689]
[1759377341079,31.86,223.98,223.97,3.65417689]
[1759377342692,31.86,223.98,223.97,2.98417689]
[1759377343058,31.86,223.98,223.97,3.65417689]
[1759377343682,15.34046911,224.02,223.97,3.65417689]
[1759377343890,10.87647521,224.0,223.97,0.67]
[1759377344058,10.87647521,224.0,223.98,2.98473441]
[1759377344258,10.87647521,224.04,223.99,2.98464622]
[1759377344466,10.87647521,224.02,223.97,4.46479339]
[1759377344681,10.87647521,224.02,223.98,2.98452314]
[1759377345021,10.87647521,224.02,223.99,3.65452314]
[1759377345168,10.87647521,224.02,223.96,20.8]
[1759377345367,10.87647521,224.02,223.97,2.98453571]
[1759377345569,10.87647521,224.02,223.98,2.98453571]
[1759377345888,10.87647521,224.02,223.97,0.67]
[1759377346486,10.87647521,224.02,223.98,2.98494504]
[1759377346662,31.78,224.01,223.97,0.67]
[1759377346859,31.78,224.01,223.98,3.65481187]
[1759377347085,31.78,224.01,223.99,3.65481187]
[1759377347390,31.78,224.01,223.99,0.67]
[1759377347588,31.78,224.01,223.97,5.13487306]
[1759377347794,31.78,224.01,223.98,3.65532635]
[1759377347977,31.78,224.01,223.98,0.67]
[1759377348304,31.78,224.01,223.96,20.8]
[1759377348589,31.78,224.01,223.97,3.65606455]
[1759377348776,31.78,224.01,223.98,3.65606455]
[1759377348986,31.78,224.01,223.98,0.67]
[1759377349565,31.78,224.01,223.99,2.98671353]
[1759377349765,31.78,224.01,223.98,0.67]
[1759377350195,10.87647521,224.02,223.98,4.46458749]
[1759377350388,31.74,224.0,223.99,0.67]
[1759377350690,31.74,224.0,223.97,4.46487161]
[1759377351068,31.74,224.0,223.97,5.13487161]
[1759377351867,31.74,224.0,223.98,0.67]
[1759377352180,31.74,224.0,223.96,20.8]
[1759377352511,31.74,224.0,223.98,0.67]
[1759377353080,31.74,224.0,223.96,25.26507598]
[1759377353383,31.74,224.0,223.97,0.67]
[1759377353583,31.74,224.0,223.96,25.26507598]
[1759377353781,31.74,224.0,223.98,0.67]
[1759377353962,31.74,224.0,223.96,25.26507598]
[1759377353963,31.74,224.0,223.96,25.92507598]
[1759377354167,31.74,224.0,223.97,0.66]
[1759377354580,31.74,224.0,223.96,25.26507598]
[1759377354774,31.74,224.0,223.96,25.92507598]
[1759377355493,31.74,224.0,223.96,21.46]
[1759377356092,31.74,224.0,223.93,3.72898637]
[1759377356093,12.38081707,223.99,223.93,3.72898637]
[1759377356265,11.01863678,223.99,223.92,0.66]
[1759377356465,10.87647521,223.97,223.92,0.66]
[1759377356671,31.68,223.96,223.92,0.66]
[1759377356894,31.68,223.96,223.93,21.46]
[1759377358198,31.68,223.96,223.93,0.66]
[1759377358373,31.68,223.96,223.91,25.92593442]
[1759377358694,31.68,223.96,223.92,0.66]
[1759377359089,10.87647521,223.95,223.92,0.66]
[1759377359392,10.87647521,223.95,223.9,0.66]
[1759377359597,10.87647521,223.95,223.91,0.66]
[1759377360285,10.87647521,223.95,223.91,21.46]
[1759377360486,15.34176488,223.95,223.91,21.46]
[1759377360680,15.34176488,223.95,223.89,21.46]
[1759377361070,15.34176488,223.95,223.89,20.8]
[1759377361271,15.34176488,223.95,223.9,0.66]
[1759377361472,15.34176488,223.95,223.91,0.66]
[1759377361704,10.87647521,223.95,223.91,0.66]
[1759377362284,0.14216157,223.98,223.92,0.66]
[1759377362495,10.87647521,223.96,223.92,0.66]
[1759377363202,10.87647521,223.96,223.93,0.66]
[1759377363985,10.87647521,223.96,223.91,20.8]
[1759377364186,12.38081707,223.96,223.88,79.2]
[1759377364503,12.38081707,223.96,223.89,0.66]
[1759377365182,16.8459063,223.96,223.89,5.1263632]
[1759377367404,16.8459063,223.96,223.89,0.66]
[1759377367405,10.87647521,223.94,223.89,0.66]
[1759377367612,31.6,223.93,223.89,0.66]
[1759377367905,31.6,223.93,223.89,20.8]
[1759377368107,10.87647521,223.92,223.88,20.8]
[1759377368299,10.87647521,223.92,223.87,0.66]
[1759377368603,10.87647521,223.92,223.88,0.66]
[1759377370496,10.87647521,223.92,223.89,0.66]
[1759377373508,10.87647521,223.92,223.87,25.92687218]
[1759377373894,10.87647521,223.92,223.88,0.66]
[1759377374883,10.87647521,223.92,223.89,0.66]
[1759377375322,1.50434186,223.95,223.89,0.66]
[1759377375519,11.1614127,223.99,223.9,0.66]
[1759377375520,31.54,223.94,223.9,0.66]
[1759377375717,10.87647521,223.99,223.9,0.66]
[1759377375718,1.50434186,223.99,223.9,0.66]
[1759377375896,10.87647521,223.97,223.9,0.66]
[1759377377293,10.87647521,223.97,223.91,4.46608012]
[1759377377604,10.87647521,223.97,223.92,21.46]
[1759377377804,10.87647521,223.97,223.93,0.66]
[1759377378115,10.87647521,223.97,223.94,0.66]
[1759377378496,6.81396545,223.99,223.94,0.66]
[1759377378812,10.87647521,223.97,223.92,0.66]
[1759377379011,31.54,223.96,223.92,0.66]
[1759377379822,10.87647521,223.95,223.91,20.8]
[1759377380400,10.87647521,223.95,223.91,21.46]
[1759377380704,10.87647521,223.95,223.89,4.46647907]
[1759377380705,15.34179286,223.95,223.89,4.46647907]
[1759377380906,15.34179286,223.95,223.9,0.66]
[1759377381421,10.87647521,223.95,223.9,0.66]
[1759377382699,10.87647521,223.95,223.9,4.46611376]
[1759377383014,10.87647521,223.95,223.91,0.65]
[1759377384520,31.5,223.94,223.9,4.46611376]
[1759377384813,31.5,223.94,223.91,0.7]
[1759377385723,10.87647521,223.95,223.91,0.7]
[1759377385928,31.5,223.94,223.91,0.7]
[1759377386424,31.5,223.93,223.91,0.7]
[1759377389527,31.5,223.93,223.88,31.96646998]
[1759377389732,31.5,223.93,223.88,20.8]
[1759377389911,35.96574675,223.93,223.88,5.16667243]
[1759377390108,31.5,223.93,223.88,25.96667243]
[1759377390324,31.5,223.93,223.89,0.7]
[1759377390628,31.5,223.93,223.9,0.7]
[1759377390829,10.87647521,223.95,223.9,0.7]
[1759377391012,31.5,223.94,223.9,0.7]
[1759377391703,10.87647521,223.95,223.91,4.46608012]
[1759377392033,31.5,223.94,223.92,0.7]
[1759377392225,31.5,223.94,223.91,4.46608012]
[1759377392407,31.5,223.94,223.93,0.7]
[1759377393028,31.5,223.94,223.93,5.16568123]
[1759377393230,10.87647521,223.98,223.93,5.16568123]
[1759377393412,31.5,223.97,223.94,0.7]
[1759377393609,10.87647521,223.96,223.91,0.7]
[1759377393934,42.37647521,223.96,223.91,0.7]
[1759377394833,42.37647521,223.96,223.92,0.7]
[1759377395938,42.37647521,223.96,223.93,0.7]
[1759377396315,42.37647521,223.96,223.94,0.7]
[1759377396534,42.37647521,223.96,223.92,25.26586875]
[1759377396727,31.5,223.96,223.94,0.7]
[1759377397112,31.5,223.96,223.92,25.26586875]
[1759377397441,31.5,223.96,223.95,0.7]
[1759377398730,31.48,223.97,223.95,0.7]
[1759377399114,42.35647521,223.97,223.96,0.7]
[1759377399824,42.35647521,223.97,223.94,0.7]
[1759377400125,42.35647521,223.97,223.95,0.7]
[1759377400821,42.35647521,223.97,223.93,4.46568123]
[1759377400822,31.48,223.97,223.96,0.7]
[1759377401026,31.48,223.97,223.94,0.7]
[1759377403840,33.82936111,223.97,223.94,20.8]
[1759377404165,33.82936111,223.97,223.94,21.5]
[1759377406835,31.48,223.97,223.94,21.5]
[1759377407037,31.48,223.97,223.95,0.7]
[1759377408457,33.82936111,223.97,223.95,0.7]
[1759377409534,31.48,223.97,223.95,0.7]
[1759377409842,33.82936111,223.97,223.95,0.7]
[1759377411357,33.82936111,223.97,223.93,25.26567799]
[1759377411573,33.82936111,223.97,223.94,0.7]
[1759377411865,33.82936111,223.97,223.93,25.26567799]
[1759377412048,31.48,223.97,223.95,0.7]
[1759377412552,31.48,223.97,223.93,21.5]
[1759377412756,31.48,223.97,223.93,20.8]
[1759377413055,31.48,223.97,223.94,0.7]
[1759377413268,31.48,223.97,223.95,0.7]
[1759377413774,33.82936111,223.97,223.95,0.7]
[1759377416762,2.34936111,223.97,223.96,0.65]
[1759377416943,31.48,223.97,223.96,0.65]
[1759377417138,2.34936111,224.0,223.96,0.65]
[1759377417358,31.48,223.99,223.96,0.65]
[1759377417860,10.87647521,224.02,223.96,5.1150286]
[1759377417861,2.34936111,224.02,223.96,5.1150286]
[1759377418062,42.35647521,224.01,223.97,0.65]
[1759377419458,44.70583632,224.01,223.98,0.65]
[1759377420367,49.16999281,224.01,223.98,0.65]
[1759377420542,2.34936111,224.0,223.96,0.65]
[1759377420742,2.34936111,224.0,223.92,0.65]
[1759377420743,2.34936111,223.97,223.92,0.65]
[1759377420941,10.87647521,224.0,223.92,0.65]
[1759377420942,2.34936111,223.94,223.92,0.65]
[1759377421251,2.34936111,223.93,223.91,0.65]
[1759377421471,33.82936111,223.94,223.92,0.65]
[1759377421669,31.48,223.94,223.92,0.65]
[1759377421972,33.82936111,223.94,223.92,0.65]
[1759377422969,31.48,223.94,223.92,0.65]
[1759377428052,33.82936111,223.94,223.91,0.65]
[1759377428441,33.82936111,223.94,223.92,0.65]
[1759377431368,2.34936111,223.93,223.83,11.16901052]
[1759377431566,35.94559076,223.94,223.83,11.16901052]
[1759377431567,2.34936111,223.9,223.87,0.65]
[1759377431766,33.82936111,223.89,223.87,0.65]
[1759377432375,31.48,223.89,223.87,0.65]
[1759377433267,33.82936111,223.89,223.87,0.65]
[1759377433575,33.82936111,223.89,223.86,20.8]
[1759377433779,33.82936111,223.89,223.88,0.65]
[1759377434074,33.82936111,223.89,223.87,21.45]
[1759377436376,10.87647521,223.87,223.81,0.65]
[1759377436569,10.87647521,223.87,223.79,0.65]
[1759377436570,2.34936111,223.82,223.79,0.65]
[1759377436750,33.82936111,223.82,223.79,0.65]
[1759377436946,2.34936111,223.81,223.8,20.8]
[1759377437151,2.34936111,223.81,223.77,0.37954395]
[1759377437452,31.48,223.8,223.78,0.65]
[1759377437674,31.48,223.8,223.79,0.65]
[1759377438173,31.48,223.8,223.78,20.8]
[1759377438379,31.48,223.8,223.77,1.02954395]
[1759377438982,4.46906637,223.85,223.78,0.65]
[1759377439174,31.48,223.84,223.78,21.45]
[1759377439356,31.48,223.84,223.79,5.1184749]
[1759377439680,31.48,223.84,223.8,0.65]
[1759377440570,31.48,223.84,223.81,0.65]
[1759377440958,32.9854561,223.84,223.81,0.65]
[1759377441158,10.87647521,223.83,223.79,0.65]
[1759377441377,10.87647521,223.83,223.78,20.8]
[1759377441378,32.9854561,223.82,223.78,20.8]
[1759377441682,1.5054561,223.81,223.77,1.06954395]
[1759377441868,31.48,223.8,223.77,1.06954395]
[1759377442175,32.9854561,223.8,223.77,0.37954395]
[1759377442481,1.5054561,223.78,223.77,0.37954395]
[1759377444958,16.8506059,223.78,223.77,0.37954395]
[1759377446062,48.3306059,223.78,223.77,0.37954395]
[1759377446464,10.87647521,223.78,223.77,0.37954395]
[1759377446670,43.86193131,223.78,223.77,0.37954395]
[1759377447361,48.3306059,223.78,223.77,0.37954395]
[1759377452578,61.75612781,223.78,223.77,0.37954395]
[1759377453894,48.3306059,223.78,223.77,0.37954395]
[1759377455091,48.47276747,223.78,223.77,0.37954395]
[1759377458213,16.99276747,223.78,223.77,0.37954395]
[1759377458393,48.47276747,223.78,223.77,0.37954395]
[1759377459911,12.52409288,223.75,223.74,0.1]
[1759377460083,44.00409288,223.75,223.74,0.1]
[1759377460692,48.47336662,223.75,223.74,0.1]
[1759377465494,50.26399714,223.75,223.74,0.1]
[1759377467824,18.78399714,223.75,223.74,0.1]
[1759377467994,50.26399714,223.75,223.74,0.1]
[1759377469423,4.5163683,223.8,223.74,0.1]
[1759377469622,32.63469786,223.98,223.74,0.1]
[1759377469623,3.0111055,223.89,223.77,10.87647521]
[1759377469927,1.7054561,224.04,223.9,0.28432314]
[1759377470147,8.44,224.03,223.94,20.8]
[1759377470531,8.44,224.03,223.94,33.93250897]
[1759377472398,8.44,224.03,223.95,3.10681714]
[1759377472618,8.44,224.03,223.96,3.10681714]
[1759377472815,8.44,224.03,223.97,3.10681714]
[1759377473029,8.44,224.03,223.98,3.10681714]
[1759377473326,8.44,224.03,223.94,33.93250897]
[1759377475918,12.90374025,224.03,223.94,33.93250897]
[1759377476119,13.23409288,224.02,223.92,12.94598051]
[1759377476322,0.14216157,223.98,223.82,12.94598051]
[1759377476535,11.01863678,223.96,223.82,12.94598051]
[1759377476712,11.72863678,223.96,223.85,20.8]
[1759377477209,11.72863678,223.96,223.82,12.94598051]
[1759377477410,4.46528242,223.95,223.85,20.8]
[1759377477910,0.71,223.94,223.85,20.8]
[1759377478507,0.71,223.94,223.85,34.01820798]
[1759377479117,4.46568123,223.93,223.85,34.01820798]
[1759377480836,15.62988432,223.93,223.85,34.01820798]
[1759377481218,47.58988432,223.93,223.85,34.01820798]
[1759377484432,1.5054561,223.91,223.79,0.28432314]
[1759377484635,1.5054561,223.89,223.76,11.17268402]
[1759377484844,32.63,223.88,223.77,0.28432314]
[1759377485022,32.63,223.88,223.79,20.8]
[1759377485223,32.63,223.88,223.77,0.28432314]
[1759377485426,4.46687809,223.87,223.79,20.8]
[1759377485623,4.46687809,223.87,223.79,25.26840299]
[1759377485823,4.46687809,223.87,223.79,4.46840299]
[1759377486343,4.46687809,223.87,223.79,25.26840299]
[1759377487142,4.46687809,223.87,223.79,38.70600382]
[1759377495351,4.46687809,223.87,223.79,34.23760083]
[1759377495662,5.17687809,223.87,223.79,38.70603339]
[1759377495956,0.71,223.86,223.79,34.23760083]
[1759377496144,2.2154561,223.86,223.74,0.1]
[1759377496457,1.5054561,223.84,223.77,20.8]
[1759377496652,0.71,223.83,223.74,4.56929978]
[1759377496837,0.71,223.82,223.75,20.8]
[1759377497347,0.71,223.82,223.76,4.469074]
[1759377498144,5.17798931,223.82,223.75,20.8]
[1759377499958,5.17798931,223.82,223.75,25.26907432]
[1759377501358,36.97798931,223.82,223.75,25.26907432]
[1759377501540,0.67,223.85,223.75,36.44225867]
[1759377501746,34.22191799,223.92,223.75,36.44225867]
[1759377501747,2.35234,223.9,223.77,20.8]
[1759377501939,22.32581663,223.96,223.75,47.44225867]
[1759377501940,20.89,223.89,223.78,20.8]
[1759377502138,0.67,223.89,223.78,20.8]
[1759377502336,10.87647521,223.92,223.79,32.10295992]
[1759377502337,0.67,223.92,223.79,32.10295992]
[1759377502543,22.30757168,224.14,223.83,20.8]
[1759377502544,5.13528242,223.95,223.83,20.8]
[1759377502747,0.67,223.98,223.84,0.42648471]
[1759377502954,11.54,223.97,223.88,20.8]
[1759377503970,11.54,223.97,223.89,4.46647907]
[1759377504351,36.99473675,223.98,223.89,4.46647907]
[1759377504552,5.13473675,223.98,223.89,4.46647907]
[1759377505235,5.12493013,223.97,223.89,4.46647907]
[1759377505438,0.66,223.96,223.89,4.46647907]
[1759377506341,0.66,223.96,223.92,20.8]
[1759377507269,32.48,223.98,223.92,25.26581729]
[1759377507635,0.66,223.98,223.92,25.26581729]